fUST/lending_fUST_20250503
["ID","MTS","AMOUNT","RATE_DAILY","PERIOD"]
[359635365,1746202232475,-3259.67825476,0.00018082,2]
[359635367,1746202232485,-160.0,0.000189,2]
[359635378,1746202232576,-456.43629558,0.000189,2]
[359635380,1746202232586,-488.56370442,0.00018986,2]
[359635382,1746202232598,-408.63122278,0.00018986,2]
[359635384,1746202232608,-330.96205872,0.00019078,2]
[359635386,1746202232617,-860.38693047,0.00019078,2]
[359635388,1746202232627,-250.38490231,0.000191,2]
[359635390,1746202232637,-330.96205868,0.00019147,2]
[359635392,1746202232646,-300.0,0.00019167,2]
[359635395,1746202232656,-1200.0,0.00019167,2]
[359635398,1746202232666,-300.0,0.00019167,2]
[359635401,1746202232675,-25372.06921361,0.00019168,2]
[359636063,1746202246746,-1196.15447597,0.00019168,2]
[359636065,1746202246757,-298.85,0.00019168,3]
[359636067,1746202246767,-298.11552403,0.00019168,3]
[359636073,1746202246896,-598.45447597,0.00019168,3]
[359636074,1746202246906,-1317.52103089,0.00019171,2]
[359636122,1746203416757,-157.76832993,0.00018543,2]
[359636123,1746203416782,-683.02091999,0.00018643,2]
[359636124,1746203416805,-506.21075008,0.00018643,2]
[359636169,1746203432568,-1560.78924992,0.00018643,2]
[359636171,1746203432578,-1200.0,0.00018799,2]
[359636172,1746203432587,-3154.47623706,0.000188,2]
[359636174,1746203432597,-200.0,0.00018899,2]
[359636177,1746203432630,-300.0,0.00018899,2]
[359636178,1746203432640,-1760.99749784,0.000189,2]
[359636181,1746203432650,-917.7559418,0.00018986,2]
[359636183,1746203432660,-179.92802879,0.00019067,2]
[359636185,1746203432670,-381.2197526,0.00019078,2]
[359636187,1746203432679,-1115.06794239,0.00019078,2]
[359636189,1746203432688,-156.0,0.000191,2]
[359636191,1746203432698,-36501.16661133,0.00019114,2]
[359636193,1746203432708,-97.31963442,0.00019117,2]
[359636195,1746203432721,-283.90011815,0.00019117,2]
[359636198,1746203432731,-381.21975257,0.00019156,2]
[359636200,1746203432741,-6082.82378125,0.00019166,2]
[359636202,1746203432750,-479.64,0.00019168,3]
[359636204,1746203432760,-239.82,0.00019168,3]
[359636206,1746203432769,-719.47,0.00019168,3]
[359636208,1746203432779,-500.0,0.00019171,2]
[359636210,1746203432788,-360.0,0.00019171,2]
[359636212,1746203432798,-360.0,0.00019171,2]
[359636214,1746203432807,-360.0,0.00019171,2]
[359636216,1746203432816,-360.0,0.00019171,2]
[359636218,1746203432826,-360.0,0.00019171,2]
[359636220,1746203432835,-360.0,0.00019171,2]
[359636222,1746203432845,-360.0,0.00019171,2]
[359636224,1746203432854,-469.88732586,0.00019177,2]
[359636225,1746203432863,-500.0,0.00019178,2]
[359636227,1746203432873,-500.0,0.00019178,2]
[359636229,1746203432883,-500.0,0.00019178,2]
[359636231,1746203432893,-500.0,0.00019178,2]
[359636233,1746203432903,-500.0,0.00019178,2]
[359636235,1746203432912,-500.0,0.00019178,2]
[359636237,1746203432922,-500.0,0.00019178,2]
[359636239,1746203432933,-500.0,0.00019178,2]
[359636241,1746203432944,-266.0,0.00019178,2]
[359636243,1746203432953,-500.0,0.00019178,2]
[359636245,1746203432962,-500.0,0.00019178,2]
[359636247,1746203432972,-500.0,0.00019178,2]
[359636249,1746203432981,-500.0,0.00019178,2]
[359636255,1746203433035,-500.0,0.00019178,2]
[359636257,1746203433046,-500.0,0.00019178,2]
[359636259,1746203433057,-570.51956171,0.00019178,2]
[359636261,1746203433067,-151.0,0.00019178,2]
[359636263,1746203433078,-151.0,0.00019178,2]
[359636265,1746203433087,-151.0,0.00019178,2]
[359636267,1746203433098,-151.0,0.00019178,2]
[359636269,1746203433108,-151.0,0.00019178,2]
[359636271,1746203433118,-151.0,0.00019178,2]
[359636273,1746203433128,-151.0,0.00019178,2]
[359636275,1746203433138,-161.299047,0.00019178,2]
[359636276,1746203433148,-400.0,0.00019178,2]
[359636278,1746203433158,-502.19282968,0.00019178,2]
[359636280,1746203433168,-241.8093857,0.00019178,2]
[359636282,1746203433178,-400.0,0.00019178,2]
[359636284,1746203433188,-400.0,0.00019178,2]
[359636285,1746203433202,-400.0,0.00019178,2]
[359636287,1746203433215,-400.0,0.00019178,2]
[359636289,1746203433226,-400.0,0.00019178,2]
[359636291,1746203433236,-400.0,0.00019178,2]
[359636293,1746203433248,-400.0,0.00019178,2]
[359636295,1746203433258,-526.38953586,0.00019178,2]
[359636297,1746203433269,-400.0,0.00019178,2]
[359636299,1746203433280,-400.0,0.00019178,2]
[359636301,1746203433291,-400.0,0.00019178,2]
[359636303,1746203433301,-400.0,0.00019178,2]
[359636305,1746203433311,-400.0,0.00019178,2]
[359636307,1746203433321,-400.0,0.00019178,2]
[359636309,1746203433330,-400.0,0.00019178,2]
[359636310,1746203433339,-400.0,0.00019178,2]
[359636312,1746203433350,-400.0,0.00019178,2]
[359636314,1746203433360,-400.0,0.00019178,2]
[359636316,1746203433370,-400.0,0.00019178,2]
[359636318,1746203433379,-400.0,0.00019178,2]
[359636320,1746203433389,-679.03,0.00019178,2]
[359636322,1746203433398,-400.0,0.00019178,2]
[359636324,1746203433409,-483.87697905,0.00019178,2]
[359636326,1746203433420,-400.0,0.00019178,2]
[359636328,1746203433430,-400.0,0.00019178,2]
[359636330,1746203433441,-400.0,0.00019178,2]
[359636332,1746203433451,-405.55,0.00019178,2]
[359636334,1746203433461,-477.72,0.00019178,2]
[359636336,1746203433471,-400.0,0.00019178,2]
[359636338,1746203433482,-400.0,0.00019178,2]
[359636340,1746203433491,-400.0,0.00019178,2]
[359636342,1746203433501,-441.44,0.00019178,2]
[359636344,1746203433511,-400.0,0.00019178,2]
[359636346,1746203433521,-400.0,0.00019178,2]
[359636348,1746203433530,-151.0,0.00019178,2]
[359636349,1746203433540,-500.0,0.00019178,2]
[359636351,1746203433550,-400.0,0.00019178,2]
[359636353,1746203433559,-151.0,0.00019178,2]
[359636355,1746203433569,-400.0,0.00019178,2]
[359636357,1746203433578,-400.0,0.00019178,2]
[359636359,1746203433589,-151.0,0.00019178,2]
[359636361,1746203433598,-413.85,0.00019178,2]
[359636363,1746203433607,-256.38723193,0.00019178,2]
[359636365,1746203433617,-151.0,0.00019178,2]
[359636366,1746203433626,-400.0,0.00019178,2]
[359636368,1746203433637,-400.0,0.00019178,2]
[359636370,1746203433646,-400.0,0.00019178,2]
[359636372,1746203433656,-400.0,0.00019178,2]
[359636374,1746203433666,-225.18472358,0.00019178,2]
[359636376,1746203433675,-400.0,0.00019178,2]
[359636378,1746203433685,-151.0,0.00019178,2]
[359636380,1746203433696,-400.0,0.00019178,2]
[359636382,1746203433705,-151.0,0.00019178,2]
[359636384,1746203433715,-217.17090964,0.00019178,2]
[359636386,1746203433725,-400.0,0.00019178,2]
[359636388,1746203433735,-406.94,0.00019178,2]
[359636390,1746203433744,-404.35331919,0.00019178,2]
[359636392,1746203433754,-400.0,0.00019178,2]
[359636394,1746203433763,-690.47,0.00019178,2]
[359636396,1746203433773,-400.0,0.00019178,2]
[359636398,1746203433782,-400.0,0.00019178,2]
[359636400,1746203433792,-400.0,0.00019178,2]
[359636402,1746203433801,-400.0,0.00019178,2]
[359636404,1746203433811,-426.51,0.00019178,2]
[359636406,1746203433820,-1032.6,0.00019178,2]
[359636408,1746203433829,-400.0,0.00019178,2]
[359636410,1746203433838,-468.25,0.00019178,2]
[359636411,1746203433847,-400.0,0.00019178,2]
[359636413,1746203433856,-664.74,0.00019178,2]
[359636415,1746203433866,-400.0,0.00019178,2]
[359636417,1746203433875,-400.0,0.00019178,2]
[359636418,1746203433885,-400.0,0.00019178,2]
[359636420,1746203433895,-465.51,0.00019178,2]
[359636422,1746203433905,-400.0,0.00019178,2]
[359636424,1746203433916,-400.0,0.00019178,2]
[359636426,1746203433926,-404.86,0.00019178,2]
[359636428,1746203433936,-480.18,0.00019178,2]
[359636430,1746203433948,-1019.44,0.00019178,2]
[359636432,1746203433957,-400.0,0.00019178,2]
[359636434,1746203433967,-207.31345278,0.00019178,2]
[359636436,1746203433977,-400.0,0.00019178,2]
[359636438,1746203433986,-572.09,0.00019178,2]
[359636440,1746203433995,-300.014447,0.00019178,2]
[359636442,1746203434005,-400.0,0.00019178,2]
[359636444,1746203434014,-400.0,0.00019178,2]
[359636446,1746203434024,-594.62,0.00019178,2]
[359636448,1746203434033,-400.0,0.00019178,2]
[359636449,1746203434043,-400.0,0.00019178,2]
[359636451,1746203434053,-400.0,0.00019178,2]
[359636453,1746203434063,-400.0,0.00019178,2]
[359636455,1746203434072,-534.46,0.00019178,2]
[359636457,1746203434082,-400.0,0.00019178,2]
[359636459,1746203434091,-400.0,0.00019178,2]
[359636461,1746203434101,-400.0,0.00019178,2]
[359636463,1746203434111,-400.0,0.00019178,2]
[359636465,1746203434120,-400.0,0.00019178,2]
[359636467,1746203434130,-400.0,0.00019178,2]
[359636469,1746203434140,-400.0,0.00019178,2]
[359636471,1746203434150,-786.05,0.00019178,2]
[359636472,1746203434160,-420.1,0.00019178,2]
[359636473,1746203434170,-448.8,0.00019178,2]
[359636474,1746203434180,-400.0,0.00019178,2]
[359636475,1746203434190,-400.0,0.00019178,2]
[359636476,1746203434204,-400.0,0.00019178,2]
[359636477,1746203434214,-400.0,0.00019178,2]
[359636478,1746203434224,-400.0,0.00019178,2]
[359636479,1746203434234,-545.62,0.00019178,2]
[359636480,1746203434244,-400.0,0.00019178,2]
[359636481,1746203434253,-610.15,0.00019178,2]
[359636482,1746203434265,-869.31,0.00019178,2]
[359636483,1746203434276,-400.0,0.00019178,2]
[359636484,1746203434286,-400.0,0.00019178,2]
[359636485,1746203434296,-400.0,0.00019178,2]
[359636486,1746203434305,-500.0,0.00019178,2]
[359636487,1746203434314,-418.0,0.00019178,2]
[359636488,1746203434324,-500.0,0.00019178,2]
[359636489,1746203434334,-500.0,0.00019178,2]
[359636490,1746203434343,-455.81,0.00019178,2]
[359636491,1746203434352,-400.0,0.00019178,2]
[359636492,1746203434363,-228.65173529,0.00019178,2]
[359636493,1746203434372,-151.0,0.00019178,2]
[359636494,1746203434381,-400.0,0.00019178,2]
[359636495,1746203434392,-400.0,0.00019178,2]
[359636496,1746203434402,-400.0,0.00019178,2]
[359636497,1746203434411,-400.0,0.00019178,2]
[359636498,1746203434421,-1046.33,0.00019178,2]
[359636499,1746203434431,-151.0,0.00019178,2]
[359636500,1746203434441,-151.0,0.00019178,2]
[359636501,1746203434451,-469.13,0.00019178,2]
[359636502,1746203434461,-400.0,0.00019178,2]
[359636503,1746203434470,-151.0,0.00019178,2]
[359636504,1746203434480,-151.0,0.00019178,2]
[359636505,1746203434490,-151.0,0.00019178,2]
[359636506,1746203434500,-151.0,0.00019178,2]
[359636507,1746203434510,-151.0,0.00019178,2]
[359636508,1746203434520,-151.0,0.00019178,2]
[359636509,1746203434530,-151.0,0.00019178,2]
[359636510,1746203434540,-400.0,0.00019178,2]
[359636511,1746203434550,-400.0,0.00019178,2]
[359636512,1746203434560,-400.0,0.00019178,2]
[359636514,1746203434570,-400.0,0.00019178,2]
[359636516,1746203434580,-492.15,0.00019178,2]
[359636518,1746203434590,-400.0,0.00019178,2]
[359636520,1746203434600,-400.0,0.00019178,2]
[359636522,1746203434611,-1841.13,0.00019178,2]
[359636524,1746203434621,-425.09,0.00019178,2]
[359636526,1746203434631,-465.28,0.00019178,2]
[359636529,1746203434641,-1218.2,0.00019178,2]
[359636531,1746203434651,-400.0,0.00019178,2]
[359636533,1746203434661,-861.49,0.00019178,2]
[359636535,1746203434671,-446.9,0.00019178,2]
[359636537,1746203434681,-729.79,0.00019178,2]
[359636539,1746203434691,-500.0,0.00019178,2]
[359636541,1746203434700,-509.2,0.00019178,2]
[359636543,1746203434710,-500.61399207,0.00019178,2]
[359636545,1746203434720,-278.87757745,0.00019178,2]
[359636547,1746203434730,-892.01,0.00019178,2]
[359636549,1746203434740,-400.0,0.00019178,2]
[359636551,1746203434750,-400.0,0.00019178,2]
[359636553,1746203434760,-400.0,0.00019178,2]
[359636555,1746203434770,-400.0,0.00019178,2]
[359636557,1746203434781,-455.33,0.00019178,2]
[359636560,1746203434792,-400.0,0.00019178,2]
[359636562,1746203434802,-935.07,0.00019178,2]
[359636564,1746203434813,-756.6,0.00019178,2]
[359636566,1746203434823,-280.28709489,0.00019178,2]
[359636568,1746203434832,-400.0,0.00019178,2]
[359636570,1746203434842,-400.0,0.00019178,2]
[359636572,1746203434852,-400.0,0.00019178,2]
[359636574,1746203434862,-401.73218719,0.00019178,2]
[359636576,1746203434872,-657.01,0.00019178,2]
[359636579,1746203434884,-729.17,0.00019178,2]
[359636581,1746203434894,-400.0,0.00019178,2]
[359636583,1746203434904,-400.0,0.00019178,2]
[359636585,1746203434915,-400.0,0.00019178,2]
[359636587,1746203434925,-1837.96,0.00019178,2]
[359636589,1746203434935,-500.0,0.00019178,2]
[359636591,1746203434946,-1062.99,0.00019178,2]
[359636593,1746203434957,-1246.48,0.00019178,2]
[359636596,1746203434967,-407.88,0.00019178,2]
[359636598,1746203434978,-585.57,0.00019178,2]
[359636601,1746203435000,-400.0,0.00019178,2]
[359636603,1746203435013,-449.73,0.00019178,2]
[359636606,1746203435025,-400.0,0.00019178,2]
[359636608,1746203435037,-400.0,0.00019178,2]
[359636610,1746203435049,-400.0,0.00019178,2]
[359636613,1746203435060,-1625.63,0.00019178,2]
[359636615,1746203435072,-400.0,0.00019178,2]
[359636617,1746203435084,-1935.9,0.00019178,2]
[359636619,1746203435095,-3815.54,0.00019178,2]
[359636622,1746203435107,-506.89,0.00019178,2]
[359636624,1746203435118,-400.0,0.00019178,2]
[359636626,1746203435129,-400.0,0.00019178,2]
[359636628,1746203435140,-1581.54,0.00019178,2]
[359636630,1746203435151,-400.0,0.00019178,2]
[359636632,1746203435162,-400.0,0.00019178,2]
[359636635,1746203435174,-1009.12,0.00019178,2]
[359636637,1746203435185,-1643.71,0.00019178,2]
[359636639,1746203435198,-2544.41,0.00019178,2]
[359636641,1746203435214,-2040.59,0.00019178,2]
[359636644,1746203435226,-400.0,0.00019178,2]
[359636646,1746203435237,-400.0,0.00019178,2]
[359636648,1746203435250,-3476.35,0.00019178,2]
[359636650,1746203435261,-400.0,0.00019178,2]
[359636652,1746203435271,-598.14,0.00019178,2]
[359636654,1746203435285,-400.0,0.00019178,2]
[359636657,1746203435296,-400.0,0.00019178,2]
[359636659,1746203435307,-400.0,0.00019178,2]
[359636661,1746203435318,-1410.1,0.00019178,2]
[359636663,1746203435329,-500.0,0.00019178,2]
[359636665,1746203435340,-501.4554595,0.00019178,2]
[359636667,1746203435351,-400.0,0.00019178,2]
[359636670,1746203435362,-836.97,0.00019178,2]
[359636672,1746203435373,-1945.51,0.00019178,2]
[359636674,1746203435383,-400.0,0.00019178,2]
[359636676,1746203435394,-400.0,0.00019178,2]
[359636678,1746203435405,-400.0,0.00019178,2]
[359636680,1746203435416,-500.0,0.00019178,2]
[359636682,1746203435426,-400.0,0.00019178,2]
[359636685,1746203435437,-1015.28,0.00019178,2]
[359636687,1746203435448,-500.0,0.00019178,2]
[359636689,1746203435459,-726.99,0.00019178,2]
[359636691,1746203435469,-400.0,0.00019178,2]
[359636693,1746203435481,-400.0,0.00019178,2]
[359636695,1746203435491,-1733.48,0.00019178,2]
[359636697,1746203435501,-500.0,0.00019178,2]
[359636700,1746203435512,-400.0,0.00019178,2]
[359636702,1746203435523,-400.0,0.00019178,2]
[359636704,1746203435534,-390.4470832,0.00019178,2]
[359636716,1746203435636,-109.5529168,0.00019178,2]
[359636718,1746203435648,-500.0,0.00019178,2]
[359636720,1746203435660,-400.0,0.00019178,2]
[359636722,1746203435670,-293.99681865,0.00019178,2]
[359636728,1746203435716,-285.63318135,0.00019178,2]
[359636730,1746203435728,-400.0,0.00019178,2]
[359636733,1746203435739,-400.0,0.00019178,2]
[359636735,1746203435751,-400.0,0.00019178,2]
[359636737,1746203435763,-500.0,0.00019178,2]
[359636739,1746203435775,-530.68259827,0.00019178,2]
[359636742,1746203435786,-500.0,0.00019178,2]
[359636744,1746203435797,-400.0,0.00019178,2]
[359636746,1746203435809,-351.22441916,0.00019178,2]
[359636748,1746203435821,-586.47,0.00019178,2]
[359636751,1746203435834,-5227.64,0.00019178,2]
[359636753,1746203435845,-400.0,0.00019178,2]
[359636755,1746203435857,-1121.5,0.00019178,2]
[359636757,1746203435868,-1679.38,0.00019178,2]
[359636760,1746203435879,-400.0,0.00019178,2]
[359636762,1746203435891,-400.0,0.00019178,2]
[359636764,1746203435902,-500.0,0.00019178,2]
[359636766,1746203435913,-512.65,0.00019178,2]
[359636768,1746203435925,-1000.0,0.00019178,2]
[359636771,1746203435937,-400.0,0.00019178,2]
[359636773,1746203435950,-400.0,0.00019178,2]
[359636775,1746203435960,-505.04982139,0.00019178,2]
[359636777,1746203435972,-2104.82,0.00019178,2]
[359636780,1746203435987,-400.0,0.00019178,2]
[359636782,1746203435997,-1672.48,0.00019178,2]
[359636784,1746203436007,-400.0,0.00019178,2]
[359636786,1746203436018,-500.0,0.00019178,2]
[359636789,1746203436030,-1204.29,0.00019178,2]
[359636791,1746203436043,-1211.1,0.00019178,2]
[359636793,1746203436055,-151.0,0.00019178,2]
[359636796,1746203436067,-328.45670193,0.00019178,2]
[359636833,1746203438722,-71.54329807,0.00019178,2]
[359636835,1746203438733,-1265.63,0.00019178,2]
[359636837,1746203438744,-9.02808967,0.00019178,2]
[359637093,1746203443797,-1173.99833189,0.000189,2]
[359637095,1746203443807,-490.97191033,0.00019178,2]
[359637097,1746203443816,-500.0,0.00019178,2]
[359637099,1746203443825,-1499.73,0.00019178,2]
[359637101,1746203443835,-500.0,0.00019178,2]
[359637103,1746203443845,-585.36,0.00019178,2]
[359637105,1746203443855,-1905.15,0.00019178,2]
[359637107,1746203443865,-1584.83,0.00019178,2]
[359637109,1746203443874,-931.29,0.00019178,2]
[359637111,1746203443885,-444.49,0.00019178,2]
[359637113,1746203443894,-500.0,0.00019178,2]
[359637115,1746203443904,-679.97,0.00019178,2]
[359637117,1746203443913,-151.0,0.00019178,2]
[359637119,1746203443923,-400.0,0.00019178,2]
[359637121,1746203443933,-151.0,0.00019178,2]
[359637123,1746203443943,-669.29,0.00019178,2]
[359637125,1746203443955,-604.43,0.00019178,2]
[359637127,1746203443965,-151.0,0.00019178,2]
[359637129,1746203443974,-151.0,0.00019178,2]
[359637131,1746203443984,-400.0,0.00019178,2]
[359637134,1746203443993,-300.208632,0.00019178,2]
[359637136,1746203444003,-500.0,0.00019178,2]
[359637138,1746203444013,-500.0,0.00019178,2]
[359637140,1746203444022,-2096.65,0.00019178,2]
[359637142,1746203444032,-400.0,0.00019178,2]
[359637144,1746203444041,-520.89,0.00019178,2]
[359637146,1746203444051,-500.0,0.00019178,2]
[359637148,1746203444060,-400.0,0.00019178,2]
[359637150,1746203444070,-500.0,0.00019178,2]
[359637152,1746203444079,-400.0,0.00019178,2]
[359637154,1746203444089,-1874.78,0.00019178,2]
[359637156,1746203444098,-500.0,0.00019178,2]
[359637158,1746203444107,-822.3,0.00019178,2]
[359637160,1746203444117,-445.76,0.00019178,2]
[359637161,1746203444126,-545.42,0.00019178,2]
[359637163,1746203444136,-500.0,0.00019178,2]
[359637166,1746203444147,-400.0,0.00019178,2]
[359637168,1746203444157,-400.0,0.00019178,2]
[359637170,1746203444166,-2277.86,0.00019178,2]
[359637172,1746203444176,-400.0,0.00019178,2]
[359637174,1746203444185,-400.0,0.00019178,2]
[359637175,1746203444195,-679.0,0.00019178,2]
[359637176,1746203444208,-400.0,0.00019178,2]
[359637177,1746203444220,-1409.63,0.00019178,2]
[359637178,1746203444230,-400.0,0.00019178,2]
[359637179,1746203444240,-686.09,0.00019178,2]
[359637180,1746203444251,-400.0,0.00019178,2]
[359637181,1746203444261,-508.37,0.00019178,2]
[359637182,1746203444270,-669.23,0.00019178,2]
[359637183,1746203444280,-1452.76,0.00019178,2]
[359637184,1746203444290,-400.0,0.00019178,2]
[359637185,1746203444300,-2017.73,0.00019178,2]
[359637186,1746203444309,-1217.83,0.00019178,2]
[359637187,1746203444318,-466.91,0.00019178,2]
[359637188,1746203444328,-295.65733479,0.00019178,2]
[359637190,1746203444337,-400.0,0.00019178,2]
[359637192,1746203444347,-400.0,0.00019178,2]
[359637193,1746203444356,-400.0,0.00019178,2]
[359637194,1746203444365,-400.0,0.00019178,2]
[359637195,1746203444375,-3971.65,0.00019178,2]
[359637196,1746203444384,-400.0,0.00019178,2]
[359637197,1746203444394,-400.0,0.00019178,2]
[359637198,1746203444403,-400.0,0.00019178,2]
[359637199,1746203444412,-500.0,0.00019178,2]
[359637200,1746203444422,-400.0,0.00019178,2]
[359637201,1746203444431,-400.0,0.00019178,2]
[359637202,1746203444441,-521.78,0.00019178,2]
[359637203,1746203444451,-503.40631301,0.00019178,2]
[359637204,1746203444461,-400.0,0.00019178,2]
[359637205,1746203444470,-400.0,0.00019178,2]
[359637206,1746203444480,-500.0,0.00019178,2]
[359637207,1746203444490,-596.54,0.00019178,2]
[359637208,1746203444499,-400.0,0.00019178,2]
[359637209,1746203444510,-400.0,0.00019178,2]
[359637210,1746203444519,-1359.0,0.00019178,2]
[359637211,1746203444529,-400.0,0.00019178,2]
[359637212,1746203444539,-400.0,0.00019178,2]
[359637213,1746203444548,-400.0,0.00019178,2]
[359637214,1746203444558,-400.0,0.00019178,2]
[359637215,1746203444567,-400.0,0.00019178,2]
[359637216,1746203444576,-500.0,0.00019178,2]
[359637217,1746203444586,-400.0,0.00019178,2]
[359637218,1746203444596,-464.42,0.00019178,2]
[359637219,1746203444605,-501.26,0.00019178,2]
[359637220,1746203444615,-400.0,0.00019178,2]
[359637221,1746203444625,-151.0,0.00019178,2]
[359637222,1746203444635,-400.0,0.00019178,2]
[359637223,1746203444644,-500.0,0.00019178,2]
[359637225,1746203444653,-151.0,0.00019178,2]
[359637227,1746203444663,-831.9,0.00019178,2]
[359637229,1746203444672,-400.0,0.00019178,2]
[359637230,1746203444682,-400.0,0.00019178,2]
[359637232,1746203444691,-400.0,0.00019178,2]
[359637233,1746203444700,-206.49959532,0.00019178,2]
[359637234,1746203444710,-4794.49,0.00019178,2]
[359637235,1746203444719,-1390.47,0.00019178,2]
[359637236,1746203444728,-400.0,0.00019178,2]
[359637237,1746203444738,-400.0,0.00019178,2]
[359637238,1746203444747,-11433.94,0.00019178,2]
[359637239,1746203444756,-400.0,0.00019178,2]
[359637240,1746203444766,-400.0,0.00019178,2]
[359637241,1746203444775,-191.23388327,0.00019178,2]
[359637242,1746203444784,-1761.38,0.00019178,2]
[359637243,1746203444794,-400.0,0.00019178,2]
[359637244,1746203444803,-400.0,0.00019178,2]
[359637245,1746203444813,-400.0,0.00019178,2]
[359637246,1746203444823,-256.589086,0.00019178,2]
[359637247,1746203444832,-786.734817,0.00019178,2]
[359637248,1746203444841,-786.734817,0.00019178,2]
[359637249,1746203444851,-786.734817,0.00019178,2]
[359637250,1746203444861,-786.734817,0.00019178,2]
[359637251,1746203444871,-786.734817,0.00019178,2]
[359637252,1746203444880,-786.734817,0.00019178,2]
[359637253,1746203444890,-786.734817,0.00019178,2]
[359637255,1746203444900,-786.734817,0.00019178,2]
[359637256,1746203444910,-786.734817,0.00019178,2]
[359637257,1746203444919,-786.734817,0.00019178,2]
[359637258,1746203444929,-786.734817,0.00019178,2]
[359637259,1746203444939,-786.734817,0.00019178,2]
[359637260,1746203444949,-786.734817,0.00019178,2]
[359637261,1746203444959,-786.734817,0.00019178,2]
[359637262,1746203444969,-786.734817,0.00019178,2]
[359637263,1746203444979,-786.734817,0.00019178,2]
[359637264,1746203444988,-786.734817,0.00019178,2]
[359637265,1746203444998,-786.734817,0.00019178,2]
[359637266,1746203445008,-786.734817,0.00019178,2]
[359637267,1746203445018,-786.734815,0.00019178,2]
[359637268,1746203445028,-500.0,0.00019178,2]
[359637269,1746203445039,-381.21975257,0.00019195,2]
[359637270,1746203445049,-301.0030363,0.000192,2]
[359637271,1746203445058,-153.0,0.000192,2]
[359637272,1746203445068,-152.0,0.00019202,2]
[359637273,1746203445078,-2244.0,0.00019225,2]
[359637274,1746203445088,-381.21975257,0.00019234,2]
[359637275,1746203445098,-2109.97990631,0.00019237,2]
[359637276,1746203445107,-2904.0,0.00019237,2]
[359637277,1746203445117,-2904.0,0.00019237,2]
[359637278,1746203445127,-2904.0,0.00019237,2]
[359637279,1746203445137,-2904.0,0.00019237,2]
[359637280,1746203445147,-160.0,0.00019316,2]
[359637281,1746203445157,-160.0,0.00019316,2]
[359637282,1746203445166,-160.0,0.00019316,2]
[359637283,1746203445176,-160.0,0.00019316,2]
[359637284,1746203445186,-29778.8409188,0.00019329,2]
[359637292,1746203446699,-400.0,0.00019178,2]
[359637293,1746203446708,-303.23,0.00019329,2]
[359637294,1746203446808,-745.24000003,0.00019329,2]
[359637374,1746204331554,738.883825,0.00022,31]
[359637419,1746204631764,-207.4,0.00018585,2]
[359637421,1746204631775,-1999.71799423,0.000189,2]
[359637423,1746204631785,-164.21011834,0.00019073,2]
[359637425,1746204631795,-1079.53024966,0.00019073,2]
[359637427,1746204631805,-179.9460162,0.00019093,2]
[359637429,1746204631815,-734.2047534,0.00019135,2]
[359637431,1746204631825,-300.0,0.00019167,2]
[359637432,1746204631835,-1026.0,0.00019167,2]
[359637434,1746204631845,-445.44,0.00019168,3]